fUST/lending_fUST_20250529
["ID","MTS","AMOUNT","RATE_DAILY","PERIOD"]
[362871571,1748502641272,-430.0,0.00019178,2]
[362871572,1748502641284,-430.0,0.00019178,2]
[362871573,1748502641296,-430.0,0.00019178,2]
[362871574,1748502641307,-430.0,0.00019178,2]
[362871575,1748502641318,-430.0,0.00019178,2]
[362871576,1748502641328,-430.0,0.00019178,2]
[362871577,1748502641340,-633.39,0.00019178,2]
[362871578,1748502641352,-430.0,0.00019178,2]
[362871579,1748502641363,-430.0,0.00019178,2]
[362871580,1748502641374,-430.0,0.00019178,2]
[362871581,1748502641386,-430.0,0.00019178,2]
[362871582,1748502641397,-430.0,0.00019178,2]
[362871583,1748502641409,-430.0,0.00019178,2]
[362871584,1748502641419,-430.0,0.00019178,2]
[362871585,1748502641432,-693.43,0.00019178,2]
[362871586,1748502641452,-430.0,0.00019178,2]
[362871587,1748502641463,-430.0,0.00019178,2]
[362871588,1748502641479,-430.0,0.00019178,2]
[362871589,1748502641492,-430.0,0.00019178,2]
[362871590,1748502641506,-430.0,0.00019178,2]
[362871591,1748502641517,-430.0,0.00019178,2]
[362871592,1748502641528,-430.95128504,0.00019178,2]
[362871593,1748502641542,-350.28533695,0.00019178,2]
[362871594,1748502641554,-439.74374302,0.00019178,2]
[362871595,1748502641566,-430.0,0.00019178,2]
[362871596,1748502641587,-430.0,0.00019178,2]
[362871597,1748502641599,-620.73,0.00019178,2]
[362871598,1748502641609,-430.0,0.00019178,2]
[362871599,1748502641619,-430.0,0.00019178,2]
[362871600,1748502641629,-430.0,0.00019178,2]
[362871601,1748502641640,-430.0,0.00019178,2]
[362871602,1748502641649,-430.0,0.00019178,2]
[362871603,1748502641659,-430.0,0.00019178,2]
[362871604,1748502641669,-502.89974966,0.00019178,2]
[362871605,1748502641679,-430.0,0.00019178,2]
[362871606,1748502641695,-430.0,0.00019178,2]
[362871607,1748502641705,-430.0,0.00019178,2]
[362871608,1748502641715,-430.0,0.00019178,2]
[362871609,1748502641726,-430.0,0.00019178,2]
[362871610,1748502641736,-430.0,0.00019178,2]
[362871611,1748502641746,-430.0,0.00019178,2]
[362871612,1748502641757,-430.0,0.00019178,2]
[362871613,1748502641768,-525.79,0.00019178,2]
[362871614,1748502641785,-430.0,0.00019178,2]
[362871615,1748502641797,-430.0,0.00019178,2]
[362871616,1748502641807,-430.0,0.00019178,2]
[362871617,1748502641817,-430.0,0.00019178,2]
[362871618,1748502641827,-430.0,0.00019178,2]
[362871619,1748502641837,-430.0,0.00019178,2]
[362871620,1748502641847,-431.19877159,0.00019178,2]
[362871621,1748502641856,-769.09,0.00019178,2]
[362871622,1748502641866,-430.0,0.00019178,2]
[362871623,1748502641875,-430.0,0.00019178,2]
[362871624,1748502641884,-430.0,0.00019178,2]
[362871625,1748502641894,-430.0,0.00019178,2]
[362871626,1748502641904,-439.96448648,0.00019178,2]
[362871627,1748502641914,-430.0,0.00019178,2]
[362871628,1748502641923,-430.0,0.00019178,2]
[362871629,1748502641937,-430.0,0.00019178,2]
[362871630,1748502641947,-430.0,0.00019178,2]
[362871631,1748502641957,-430.0,0.00019178,2]
[362871632,1748502641966,-430.0,0.00019178,2]
[362871633,1748502641976,-430.0,0.00019178,2]
[362871634,1748502641985,-430.0,0.00019178,2]
[362871635,1748502641995,-430.0,0.00019178,2]
[362871636,1748502642004,-430.0,0.00019178,2]
[362871637,1748502642014,-602.51,0.00019178,2]
[362871638,1748502642023,-430.0,0.00019178,2]
[362871639,1748502642033,-430.0,0.00019178,2]
[362871640,1748502642042,-430.0,0.00019178,2]
[362871641,1748502642051,-432.95046129,0.00019178,2]
[362871642,1748502642061,-430.0,0.00019178,2]
[362871643,1748502642071,-430.0,0.00019178,2]
[362871644,1748502642081,-430.0,0.00019178,2]
[362871645,1748502642091,-430.0,0.00019178,2]
[362871646,1748502642101,-430.0,0.00019178,2]
[362871647,1748502642110,-260.0,0.00019178,2]
[362871648,1748502642122,-430.0,0.00019178,2]
[362871649,1748502642132,-430.0,0.00019178,2]
[362871650,1748502642141,-430.0,0.00019178,2]
[362871651,1748502642151,-500.0,0.00019178,2]
[362871652,1748502642161,-430.0,0.00019178,2]
[362871653,1748502642171,-500.0,0.00019178,2]
[362871654,1748502642187,-1859.43,0.00019178,2]
[362871655,1748502642197,-767.83,0.00019178,2]
[362871656,1748502642207,-450.0,0.00019178,2]
[362871657,1748502642218,-1338.57,0.00019178,2]
[362871658,1748502642228,-430.0,0.00019178,2]
[362871659,1748502642238,-430.0,0.00019178,2]
[362871660,1748502642247,-430.0,0.00019178,2]
[362871661,1748502642256,-430.0,0.00019178,2]
[362871662,1748502642266,-430.0,0.00019178,2]
[362871663,1748502642276,-197.29933521,0.00019178,2]
[362871664,1748502642286,-430.0,0.00019178,2]
[362871665,1748502642296,-430.0,0.00019178,2]
[362871666,1748502642305,-430.0,0.00019178,2]
[362871667,1748502642315,-430.0,0.00019178,2]
[362871668,1748502642325,-430.0,0.00019178,2]
[362871669,1748502642335,-430.0,0.00019178,2]
[362871670,1748502642345,-430.0,0.00019178,2]
[362871671,1748502642355,-436.4102822,0.00019178,2]
[362871672,1748502642364,-352.48466879,0.00019178,2]
[362871673,1748502642374,-1861.14,0.00019178,2]
[362871674,1748502642384,-430.0,0.00019178,2]
[362871675,1748502642394,-290.0,0.00019178,2]
[362871676,1748502642403,-430.0,0.00019178,2]
[362871677,1748502642413,-430.0,0.00019178,2]
[362871678,1748502642423,-430.0,0.00019178,2]
[362871679,1748502642436,-599.54,0.00019178,2]
[362871680,1748502642538,-430.0,0.00019178,2]
[362871681,1748502642549,-430.0,0.00019178,2]
[362871682,1748502642559,-430.0,0.00019178,2]
[362871683,1748502642569,-406.48397188,0.00019178,2]
[362871684,1748502642579,-622.98,0.00019178,2]
[362871685,1748502642588,-430.0,0.00019178,2]
[362871686,1748502642598,-430.0,0.00019178,2]
[362871687,1748502642607,-563.72596253,0.00019178,2]
[362871689,1748502642617,-430.0,0.00019178,2]
[362871690,1748502642627,-430.0,0.00019178,2]
[362871691,1748502642637,-500.0,0.00019178,2]
[362871692,1748502642647,-430.0,0.00019178,2]
[362871693,1748502642657,-458.19,0.00019178,2]
[362871694,1748502642667,-430.0,0.00019178,2]
[362871695,1748502642676,-430.0,0.00019178,2]
[362871696,1748502642688,-430.0,0.00019178,2]
[362871697,1748502642698,-430.0,0.00019178,2]
[362871699,1748502642707,-435.66959753,0.00019178,2]
[362871701,1748502642717,-430.0,0.00019178,2]
[362871702,1748502642726,-430.97579018,0.00019178,2]
[362871703,1748502642735,-430.0,0.00019178,2]
[362871704,1748502642744,-357.16532336,0.00019178,2]
[362871705,1748502642754,-430.0,0.00019178,2]
[362871706,1748502642763,-151.0,0.00019178,2]
[362871707,1748502642772,-430.0,0.00019178,2]
[362871708,1748502642781,-540.0,0.00019178,2]
[362871709,1748502642791,-430.0,0.00019178,2]
[362871710,1748502642800,-3240.33,0.00019178,2]
[362871711,1748502642809,-433.12312753,0.00019178,2]
[362871712,1748502642818,-430.0,0.00019178,2]
[362871714,1748502642827,-430.0,0.00019178,2]
[362871715,1748502642837,-430.0,0.00019178,2]
[362871716,1748502642847,-298.36532849,0.00019178,2]
[362871717,1748502642857,-820.22,0.00019178,2]
[362871718,1748502642866,-430.0,0.00019178,2]
[362871720,1748502642876,-3037.75,0.00019178,2]
[362871722,1748502642885,-430.0,0.00019178,2]
[362871724,1748502642894,-430.0,0.00019178,2]
[362871726,1748502642904,-430.0,0.00019178,2]
[362871727,1748502642913,-151.0,0.00019178,2]
[362871728,1748502642923,-500.0,0.00019178,2]
[362871729,1748502642934,-197.658875,0.00019178,2]
[362871730,1748502642944,-151.0,0.00019205,2]
[362871731,1748502642953,-202.23945746,0.00019205,2]
[362871732,1748502642962,-151.0,0.00019233,2]
[362871733,1748502642971,-156.587,0.00019233,2]
[362871734,1748502642982,-151.0,0.0001926,2]
[362871735,1748502642992,-1523.82900065,0.00019284,2]
[362871736,1748502643003,-151.0,0.00019288,2]
[362871737,1748502643015,-162.380719,0.00019288,2]
[362871738,1748502643024,-251.8,0.000193,2]
[362871739,1748502643035,-245.0,0.00019315,2]
[362871740,1748502643045,-100000.0,0.00019329,2]
[362871741,1748502643056,-168.3888056,0.00019343,2]
[362871742,1748502643065,-502.48314402,0.00019373,2]
[362871743,1748502643075,-500.0,0.00019373,2]
[362871745,1748502643084,-500.0,0.00019373,2]
[362871746,1748502643093,-500.0,0.00019373,2]
[362871747,1748502643104,-317.10264821,0.00019373,2]
[362871748,1748502643115,-500.0,0.00019373,2]
[362871749,1748502643124,-500.0,0.00019373,2]
[362871750,1748502643134,-500.0,0.00019373,2]
[362871751,1748502643143,-153.65887276,0.00019373,2]
[362871752,1748502643153,-502.7598338,0.00019373,2]
[362871753,1748502643163,-500.84143021,0.00019373,2]
[362871754,1748502643172,-201.75957293,0.00019373,2]
[362871755,1748502643181,-500.41309258,0.00019373,2]
[362871756,1748502643191,-444.88367827,0.00019373,2]
[362871758,1748502643200,-500.95406167,0.00019373,2]
[362871759,1748502643210,-179.00145892,0.00019373,2]
[362871760,1748502643219,-500.93615885,0.00019373,2]
[362871761,1748502643228,-500.0,0.00019373,2]
[362871762,1748502643238,-500.0,0.00019373,2]
[362871763,1748502643247,-500.43928904,0.00019373,2]
[362871764,1748502643258,-500.0,0.00019373,2]
[362871765,1748502643268,-504.66641701,0.00019373,2]
[362871766,1748502643277,-167.89475668,0.00019398,2]
[362871767,1748502643287,-404.45666876,0.00019451,2]
[362871768,1748502643296,-430.0,0.00019451,2]
[362871769,1748502643306,-422.62566989,0.00019452,2]
[362871770,1748502643316,-430.0,0.00019452,2]
[362871771,1748502643326,-430.0,0.00019452,2]
[362871772,1748502643336,-304.28417321,0.00019452,2]
[362871774,1748502643345,-430.0,0.00019452,2]
[362871776,1748502643355,-430.0,0.00019452,2]
[362871777,1748502643364,-430.0,0.00019452,2]
[362871778,1748502643374,-430.0,0.00019452,2]
[362871779,1748502643383,-430.0,0.00019452,2]
[362871780,1748502643393,-430.0,0.00019452,2]
[362871781,1748502643403,-430.0,0.00019452,2]
[362871782,1748502643412,-430.0,0.00019452,2]
[362871783,1748502643422,-430.0,0.00019452,2]
[362871784,1748502643433,-353.83344224,0.00019452,2]
[362871785,1748502643443,-536.80791853,0.00019452,2]
[362871786,1748502643454,-224.78107962,0.00019452,2]
[362871787,1748502643465,-327.22114813,0.00019452,2]
[362871788,1748502643475,-430.0,0.00019452,2]
[362871789,1748502643484,-551.69256863,0.00019452,2]
[362871790,1748502643495,-416.57328467,0.00019452,2]
[362871791,1748502643504,-430.0,0.00019452,2]
[362871792,1748502643513,-430.0,0.00019452,2]
[362871793,1748502643523,-186.05832167,0.00019452,2]
[362871794,1748502643532,-222.93687099,0.00019452,2]
[362871795,1748502643543,-385.01535103,0.00019452,2]
[362871796,1748502643553,-430.0,0.00019452,2]
[362871797,1748502643563,-430.0,0.00019452,2]
[362871798,1748502643572,-430.0,0.00019452,2]
[362871799,1748502643582,-440.52404097,0.00019452,2]
[362871800,1748502643592,-430.0,0.00019452,2]
[362871801,1748502643602,-430.0,0.00019452,2]
[362871802,1748502643611,-430.0,0.00019452,2]
[362871803,1748502643621,-430.0,0.00019452,2]
[362871804,1748502643632,-430.0,0.00019452,2]
[362871805,1748502643642,-430.0,0.00019452,2]
[362871806,1748502643652,-450.0,0.00019452,2]
[362871807,1748502643661,-226.65920783,0.00019452,2]
[362871808,1748502643671,-430.0,0.00019452,2]
[362871809,1748502643682,-512.89,0.00019452,2]
[362871810,1748502643691,-332.38449032,0.00019452,2]
[362871811,1748502643701,-835.93,0.00019452,2]
[362871812,1748502643710,-430.0,0.00019452,2]
[362871813,1748502643720,-485.08909823,0.00019452,2]
[362871814,1748502643729,-289.09284654,0.00019452,2]
[362871815,1748502643739,-430.0,0.00019452,2]
[362871816,1748502643749,-430.0,0.00019452,2]
[362871817,1748502643759,-430.0,0.00019452,2]
[362871818,1748502643768,-430.0,0.00019452,2]
[362871819,1748502643778,-430.0,0.00019452,2]
[362871820,1748502643788,-430.0,0.00019452,2]
[362871821,1748502643798,-430.0,0.00019452,2]
[362871822,1748502643807,-430.0,0.00019452,2]
[362871823,1748502643817,-430.0,0.00019452,2]
[362871824,1748502643826,-430.0,0.00019452,2]
[362871825,1748502643836,-430.0,0.00019452,2]
[362871826,1748502643846,-430.0,0.00019452,2]
[362871827,1748502643856,-430.0,0.00019452,2]
[362871828,1748502643865,-430.0,0.00019452,2]
[362871829,1748502643875,-430.0,0.00019452,2]
[362871830,1748502643884,-430.0,0.00019452,2]
[362871831,1748502643893,-430.0,0.00019452,2]
[362871832,1748502643903,-275.56272112,0.00019452,2]
[362871833,1748502643912,-430.0,0.00019452,2]
[362871834,1748502643922,-320.98372999,0.00019452,2]
[362871835,1748502643931,-430.0,0.00019452,2]
[362871836,1748502643941,-430.0,0.00019452,2]
[362871837,1748502643950,-430.0,0.00019452,2]
[362871838,1748502643959,-430.0,0.00019452,2]
[362871839,1748502643969,-310.80700927,0.00019452,2]
[362871840,1748502643978,-430.0,0.00019452,2]
[362871841,1748502643988,-430.0,0.00019452,2]
[362871842,1748502643998,-430.0,0.00019452,2]
[362871843,1748502644007,-430.0,0.00019452,2]
[362871844,1748502644016,-430.0,0.00019452,2]
[362871845,1748502644026,-430.0,0.00019452,2]
[362871846,1748502644036,-430.0,0.00019452,2]
[362871847,1748502644045,-430.0,0.00019452,2]
[362871848,1748502644055,-430.0,0.00019452,2]
[362871849,1748502644064,-430.0,0.00019452,2]
[362871850,1748502644074,-430.0,0.00019452,2]
[362871851,1748502644083,-430.0,0.00019452,2]
[362871852,1748502644092,-438.71776947,0.00019452,2]
[362871853,1748502644102,-430.0,0.00019452,2]
[362871854,1748502644111,-430.0,0.00019452,2]
[362871855,1748502644120,-430.0,0.00019452,2]
[362871856,1748502644129,-430.0,0.00019452,2]
[362871857,1748502644139,-734.54,0.00019452,2]
[362871858,1748502644148,-406.39747164,0.00019452,2]
[362871859,1748502644157,-430.0,0.00019452,2]
[362871860,1748502644167,-384.06865273,0.00019452,2]
[362871861,1748502644176,-535.97177885,0.00019452,2]
[362871862,1748502644186,-430.0,0.00019452,2]
[362871863,1748502644195,-430.0,0.00019452,2]
[362871864,1748502644205,-417.84315688,0.00019452,2]
[362871865,1748502644215,-238.62658928,0.00019452,2]
[362871866,1748502644224,-430.0,0.00019452,2]
[362871867,1748502644234,-430.0,0.00019452,2]
[362871868,1748502644243,-430.0,0.00019452,2]
[362871869,1748502644253,-430.0,0.00019452,2]
[362871870,1748502644263,-430.0,0.00019452,2]
[362871871,1748502644272,-430.0,0.00019452,2]
[362871872,1748502644281,-430.0,0.00019452,2]
[362871873,1748502644290,-430.0,0.00019452,2]
[362871874,1748502644301,-430.0,0.00019452,2]
[362871875,1748502644310,-430.0,0.00019452,2]
[362871876,1748502644319,-430.0,0.00019452,2]
[362871877,1748502644329,-430.0,0.00019452,2]
[362871878,1748502644338,-430.9910693,0.00019452,2]
[362871879,1748502644348,-430.0,0.00019452,2]
[362871880,1748502644357,-430.0,0.00019452,2]
[362871881,1748502644367,-430.0,0.00019452,2]
[362871882,1748502644376,-430.0,0.00019452,2]
[362871883,1748502644386,-430.0,0.00019452,2]
[362871884,1748502644485,-1868.89,0.00019452,2]
[362871885,1748502644495,-430.0,0.00019452,2]
[362871886,1748502644505,-430.0,0.00019452,2]
[362871887,1748502644515,-430.0,0.00019452,2]
[362871888,1748502644525,-500.0,0.00019452,2]
[362871889,1748502644537,-430.0,0.00019452,2]
[362871890,1748502644549,-430.0,0.00019452,2]
[362871891,1748502644559,-430.0,0.00019452,2]
[362871892,1748502644568,-550.0,0.00019452,2]
[362871893,1748502644579,-430.0,0.00019452,2]
[362871894,1748502644589,-430.0,0.00019452,2]
[362871895,1748502644599,-430.0,0.00019452,2]
[362871896,1748502644610,-430.0,0.00019452,2]
[362871897,1748502644620,-430.0,0.00019452,2]
[362871898,1748502644630,-430.0,0.00019452,2]
[362871899,1748502644640,-430.0,0.00019452,2]
[362871900,1748502644651,-430.0,0.00019452,2]
[362871901,1748502644661,-430.0,0.00019452,2]
[362871902,1748502644670,-430.0,0.00019452,2]
[362871903,1748502644681,-430.0,0.00019452,2]
[362871904,1748502644690,-472.47192245,0.00019452,2]
[362871905,1748502644699,-430.0,0.00019452,2]
[362871906,1748502644708,-430.0,0.00019452,2]
[362871907,1748502644718,-1175.42,0.00019452,2]
[362871908,1748502644728,-257.85562789,0.00019452,2]
[362871909,1748502644737,-430.0,0.00019452,2]
[362871910,1748502644746,-430.0,0.00019452,2]
[362871911,1748502644755,-430.0,0.00019452,2]
[362871912,1748502644764,-430.0,0.00019452,2]
[362871913,1748502644774,-1527.84,0.00019452,2]
[362871914,1748502644783,-430.0,0.00019452,2]
[362871915,1748502644792,-430.0,0.00019452,2]
[362871916,1748502644802,-430.0,0.00019452,2]
[362871917,1748502644811,-430.0,0.00019452,2]
[362871918,1748502644821,-430.0,0.00019452,2]
[362871919,1748502644830,-430.0,0.00019452,2]
[362871920,1748502644839,-430.0,0.00019452,2]
[362871921,1748502644848,-430.0,0.00019452,2]
[362871922,1748502644859,-633.39,0.00019452,2]
[362871923,1748502644868,-430.0,0.00019452,2]
[362871924,1748502644878,-500.54,0.00019452,2]
[362871925,1748502644887,-430.0,0.00019452,2]
[362871926,1748502644898,-430.0,0.00019452,2]
[362871927,1748502644908,-430.0,0.00019452,2]
[362871928,1748502644918,-430.0,0.00019452,2]
[362871929,1748502644929,-430.0,0.00019452,2]
[362871930,1748502644939,-693.43,0.00019452,2]
[362871931,1748502644948,-430.0,0.00019452,2]
[362871932,1748502644957,-430.0,0.00019452,2]
[362871933,1748502644966,-430.0,0.00019452,2]
[362871934,1748502644976,-430.0,0.00019452,2]
[362871935,1748502644985,-430.0,0.00019452,2]
[362871936,1748502644997,-430.0,0.00019452,2]
[362871937,1748502645007,-620.73,0.00019452,2]
[362871938,1748502645017,-430.0,0.00019452,2]
[362871939,1748502645028,-430.0,0.00019452,2]
[362871940,1748502645038,-430.0,0.00019452,2]
[362871941,1748502645049,-430.0,0.00019452,2]
[362871942,1748502645059,-430.0,0.00019452,2]
[362871943,1748502645068,-430.0,0.00019452,2]
[362871944,1748502645078,-430.0,0.00019452,2]
[362871945,1748502645087,-430.0,0.00019452,2]
[362871946,1748502645098,-430.0,0.00019452,2]
[362871947,1748502645109,-430.0,0.00019452,2]
[362871948,1748502645118,-532.99818777,0.00019452,2]
[362871949,1748502645129,-430.0,0.00019452,2]
[362871950,1748502645140,-430.0,0.00019452,2]
[362871951,1748502645150,-430.0,0.00019452,2]
[362871952,1748502645159,-525.79,0.00019452,2]
[362871953,1748502645168,-430.0,0.00019452,2]
[362871954,1748502645177,-236.93344488,0.00019452,2]
[362871955,1748502645188,-430.0,0.00019452,2]
[362871956,1748502645198,-430.0,0.00019452,2]
[362871957,1748502645207,-381.40040829,0.00019452,2]
[362871958,1748502645218,-430.0,0.00019452,2]
[362871959,1748502645227,-769.09,0.00019452,2]
[362871960,1748502645237,-518.86838749,0.00019452,2]
[362871961,1748502645246,-430.0,0.00019452,2]
[362871962,1748502645256,-430.0,0.00019452,2]
[362871963,1748502645266,-430.0,0.00019452,2]
[362871964,1748502645275,-430.0,0.00019452,2]
[362871965,1748502645285,-430.0,0.00019452,2]
[362871966,1748502645295,-430.0,0.00019452,2]
[362871967,1748502645304,-430.0,0.00019452,2]
[362871968,1748502645314,-430.0,0.00019452,2]
[362871969,1748502645323,-430.0,0.00019452,2]
[362871970,1748502645333,-430.0,0.00019452,2]
[362871971,1748502645342,-430.0,0.00019452,2]
[362871972,1748502645351,-602.51,0.00019452,2]
[362871973,1748502645368,-430.0,0.00019452,2]
[362871974,1748502645383,-430.0,0.00019452,2]
[362871975,1748502645399,-430.0,0.00019452,2]
[362871976,1748502645410,-430.0,0.00019452,2]
[362871977,1748502645424,-430.0,0.00019452,2]
[362871978,1748502645437,-430.0,0.00019452,2]
[362871979,1748502645450,-481.96345513,0.00019452,2]
[362871980,1748502645466,-430.0,0.00019452,2]
[362871981,1748502645478,-430.0,0.00019452,2]
[362871982,1748502645492,-430.0,0.00019452,2]
[362871983,1748502645504,-1859.43,0.00019452,2]
[362871984,1748502645516,-767.83,0.00019452,2]
[362871985,1748502645528,-1338.57,0.00019452,2]
[362871986,1748502645542,-430.0,0.00019452,2]
[362871987,1748502645557,-430.0,0.00019452,2]
[362871988,1748502645570,-379.39907871,0.00019452,2]
[362871989,1748502645582,-430.0,0.00019452,2]
[362871990,1748502645593,-578.84312338,0.00019452,2]
[362871991,1748502645607,-430.0,0.00019452,2]
[362871992,1748502645619,-430.0,0.00019452,2]
[362871993,1748502645633,-430.0,0.00019452,2]
[362871995,1748502645647,-430.0,0.00019452,2]
[362871996,1748502645663,-430.0,0.00019452,2]
[362871997,1748502645677,-1861.14,0.00019452,2]
[362871998,1748502645692,-430.0,0.00019452,2]
[362871999,1748502645704,-430.0,0.00019452,2]
[362872000,1748502645716,-430.0,0.00019452,2]
[362872001,1748502645727,-430.0,0.00019452,2]
[362872002,1748502645740,-599.54,0.00019452,2]
[362872003,1748502645755,-430.0,0.00019452,2]
[362872004,1748502645769,-430.0,0.00019452,2]
[362872005,1748502645779,-622.98,0.00019452,2]
[362872006,1748502645791,-430.0,0.00019452,2]
[362872007,1748502645803,-430.0,0.00019452,2]
[362872008,1748502645816,-430.0,0.00019452,2]
[362872009,1748502645827,-299.35897535,0.00019452,2]
[362872010,1748502645838,-430.0,0.00019452,2]
[362872011,1748502645851,-458.19,0.00019452,2]
[362872012,1748502645863,-430.0,0.00019452,2]
[362872013,1748502645875,-430.0,0.00019452,2]
[362872014,1748502645886,-430.0,0.00019452,2]
[362872017,1748502645898,-430.0,0.00019452,2]
[362872018,1748502645910,-430.0,0.00019452,2]
[362872019,1748502645924,-420.7134093,0.00019452,2]
[362872020,1748502645937,-430.0,0.00019452,2]
[362872021,1748502645948,-3240.33,0.00019452,2]
[362872022,1748502645961,-430.0,0.00019452,2]
[362872023,1748502645973,-430.0,0.00019452,2]
[362872025,1748502645988,-430.0,0.00019452,2]
[362872026,1748502645999,-820.22,0.00019452,2]
[362872027,1748502646012,-3037.75,0.00019452,2]
[362872028,1748502646024,-430.0,0.00019452,2]
[362872029,1748502646037,-430.0,0.00019452,2]
[362872030,1748502646050,-500.0,0.00019473,2]
[362872031,1748502646062,-500.0,0.00019473,2]
[362872032,1748502646074,-500.0,0.00019473,2]
[362872033,1748502646087,-500.0,0.00019473,2]
[362872034,1748502646101,-500.0,0.00019473,2]
[362872035,1748502646114,-608.88509455,0.00019473,2]
[362872036,1748502646127,-500.0,0.00019473,2]
[362872037,1748502646139,-500.0,0.00019473,2]
[362872038,1748502646152,-500.0,0.00019473,2]
[362872039,1748502646165,-502.12348826,0.00019473,2]
[362872040,1748502646176,-502.65120066,0.00019473,2]
[362872041,1748502646190,-1523.82900065,0.00019489,2]
[362872043,1748502646201,-500.74127578,0.00019659,2]
[362872044,1748502646213,-500.0,0.00019659,2]
[362872045,1748502646225,-1523.82900065,0.00019695,2]
[362872046,1748502646237,-183.0,0.00019697,2]
[362872047,1748502646249,-420.0,0.00019697,2]
[362872048,1748502646261,-243.0,0.00019697,2]
[362872049,1748502646272,-1002.26110878,0.00019721,2]
[362872050,1748502646284,-1000.0,0.00019721,2]
[362872051,1748502646296,-402.795404,0.00019721,2]
[362872052,1748502646308,-160.0,0.00019724,2]
[362872053,1748502646319,-481.2875179,0.00019726,2]
[362872054,1748502646332,-512.89,0.00019726,2]
[362872055,1748502646343,-835.93,0.00019726,2]
[362872056,1748502646355,-433.89524648,0.00019726,2]
[362872057,1748502646367,-430.0,0.00019726,2]
[362872058,1748502646379,-192.66632329,0.00019726,2]
[362872059,1748502646391,-430.0,0.00019726,2]
[362872060,1748502646403,-430.0,0.00019726,2]
[362872061,1748502646415,-430.0,0.00019726,2]
[362872062,1748502646428,-430.0,0.00019726,2]
[362872063,1748502646440,-734.54,0.00019726,2]
[362872064,1748502646452,-430.0,0.00019726,2]
[362872065,1748502646466,-430.0,0.00019726,2]
[362872066,1748502646604,-430.0,0.00019726,2]
[362872067,1748502646617,-430.0,0.00019726,2]
[362872068,1748502646627,-430.0,0.00019726,2]
[362872069,1748502646636,-430.0,0.00019726,2]
[362872070,1748502646645,-430.0,0.00019726,2]
[362872071,1748502646654,-1868.89,0.00019726,2]
[362872072,1748502646663,-430.0,0.00019726,2]
[362872073,1748502646672,-430.0,0.00019726,2]
[362872074,1748502646681,-430.0,0.00019726,2]
[362872075,1748502646691,-430.0,0.00019726,2]
[362872076,1748502646700,-444.79412715,0.00019726,2]
[362872077,1748502646710,-435.00917691,0.00019726,2]
[362872078,1748502646719,-430.0,0.00019726,2]
[362872079,1748502646729,-1175.42,0.00019726,2]
[362872080,1748502646738,-430.0,0.00019726,2]
[362872081,1748502646747,-1527.84,0.00019726,2]
[362872082,1748502646756,-430.0,0.00019726,2]
[362872083,1748502646766,-430.0,0.00019726,2]
[362872084,1748502646775,-430.0,0.00019726,2]
[362872085,1748502646784,-633.39,0.00019726,2]
[362872086,1748502646794,-430.0,0.00019726,2]
[362872087,1748502646803,-190.14678823,0.00019726,2]